bitfinex-derivatives/quotes_SOLF0:USTF0_20250518
["timestamp","ask_amount","ask_price","bid_price","bid_amount"]
[1747612056161,62.98,172.12,172.0,66.948]
[1747612056555,5.8089,172.08,172.0,66.948]
[1747612056757,62.98,172.12,172.0,66.948]
[1747612058162,1.1619125,172.13,172.0,66.948]
[1747612058365,1.1619125,172.13,172.01,16.1917416]
[1747612058874,1.1619125,172.13,172.07,5.8089]
[1747612059166,1.1619125,172.13,172.07,131.7689]
[1747612059367,1.1619125,172.13,172.07,125.96]
[1747612061467,6.9693125,172.13,172.08,5.8088]
[1747612062668,1.1619125,172.13,172.07,125.96]
[1747612064271,5.8083,172.1,172.07,125.96]
[1747612064470,125.94,172.16,172.07,125.96]
[1747612064773,5.8084,172.1,172.07,125.96]
[1747612065069,125.94,172.16,172.07,125.96]
[1747612065373,125.94,172.16,172.07,62.98]
[1747612066273,5.8089,172.08,172.07,62.98]
[1747612066467,5.8089,172.08,172.03,131.7303]
[1747612066976,5.8089,172.08,172.03,68.7703]
[1747612067273,62.96,172.12,172.03,62.96]
[1747612067663,5.8091,172.08,172.03,68.7703]
[1747612067871,62.98,172.16,172.03,62.96]
[1747612068071,62.96,172.15,172.03,62.96]
[1747612068576,62.98,172.16,172.03,62.96]
[1747612069172,5.8071,172.14,172.03,62.96]
[1747612069475,62.98,172.16,172.03,62.96]
[1747612069676,5.8065,172.16,172.05,16.1917416]
[1747612069973,62.96,172.2,172.06,62.96]
[1747612070272,62.96,172.2,172.07,62.96]
[1747612070667,5.8062,172.16,172.08,3.9715]
[1747612070865,5.8062,172.16,172.09,1.8713]
[1747612071071,5.8062,172.16,172.1,62.96]
[1747612071373,5.32215563,172.23,172.11,62.96]
[1747612071582,68.28215563,172.23,172.11,62.96]
[1747612072274,62.96,172.23,172.11,62.96]
[1747612072471,5.8072,172.13,172.09,7.6797]
[1747612072671,62.96,172.23,172.1,125.9]
[1747612072875,16.1917416,172.22,172.1,125.9]
[1747612073072,5.8085,172.09,172.08,3.9715]
[1747612073371,2.0002,172.25,172.05,62.96]
[1747612073372,125.9,172.15,172.05,62.96]
[1747612073573,62.96,172.14,172.05,62.96]
[1747612074176,64.9602,172.14,172.05,62.96]
[1747612075075,81.1519416,172.14,172.01,62.96]
[1747612075678,5.8106,172.03,172.01,62.96]
[1747612076074,125.9,172.09,172.01,62.96]
[1747612076577,5.8108,172.03,172.01,62.96]
[1747612077279,125.9,172.09,172.01,62.96]
[1747612077780,5.8101,172.05,172.01,62.96]
[1747612078078,125.9,172.09,172.01,62.96]
[1747612078382,5.8105,172.04,172.01,62.96]
[1747612079388,125.9,172.09,172.01,62.96]
[1747612079679,1.992,172.08,171.97,125.88]
[1747612079880,1.992,172.08,171.97,62.94]
[1747612080681,5.8101,172.05,172.0,5.8115]
[1747612080883,5.8101,172.05,171.97,62.94]
[1747612081381,125.9,172.09,171.97,62.94]
[1747612081584,62.96,172.09,171.97,62.94]
[1747612081988,5.8105,172.04,171.98,5.812]
[1747612082283,5.8105,172.04,171.97,62.94]
[1747612082488,5.8105,172.04,171.99,5.8116]
[1747612082686,5.81,172.05,171.97,62.94]
[1747612082987,5.81,172.05,172.01,5.8112]
[1747612083184,62.96,172.09,172.01,62.94]
[1747612083384,62.96,172.09,172.02,1.9549]
[1747612083580,62.96,172.09,172.02,7.7657]
[1747612084780,62.96,172.09,172.02,1.9549]
[1747612085092,62.94,172.08,172.01,62.94]
[1747612085792,62.94,172.08,172.02,5.8108]
[1747612085980,62.94,172.08,172.01,62.94]
[1747612086278,125.88,172.11,172.01,62.94]
[1747612086486,62.94,172.11,172.02,62.94]
[1747612086977,62.94,172.11,172.02,68.7506]
[1747612087184,62.94,172.11,172.02,62.94]
[1747612089685,62.94,172.11,172.03,4.0724]
[1747612089886,62.94,172.11,172.03,5.4924]
[1747612090093,5.8098,172.06,172.03,5.4924]
[1747612090974,5.8099,172.05,172.03,5.4924]
[1747612091176,62.94,172.11,172.03,5.4924]
[1747612091380,62.94,172.11,172.03,3.4545]
[1747612092988,62.94,172.11,172.03,1.42]
[1747612093892,5.8102,172.04,172.03,1.42]
[1747612096193,62.92,172.09,172.03,1.42]
[1747612096697,5.8102,172.04,172.03,1.42]
[1747612097395,62.92,172.09,172.03,1.42]
[1747612097894,5.8101,172.05,172.03,1.42]
[1747612098193,62.92,172.1,172.03,1.42]
[1747612098597,5.8095,172.07,172.03,1.42]
[1747612098795,68.26215563,172.11,172.03,64.34]
[1747612098992,5.32215563,172.11,172.03,64.34]
[1747612099994,5.8091,172.08,172.03,70.1502]
[1747612100193,5.8091,172.08,172.03,64.34]
[1747612100694,5.8091,172.08,172.04,5.81]
[1747612100894,5.8091,172.08,172.05,62.94]
[1747612101196,5.8093,172.07,172.05,62.94]
[1747612102390,5.809,172.08,172.05,62.94]
[1747612102587,62.9,172.13,172.03,1.42]
[1747612102895,5.8102,172.04,172.03,1.42]
[1747612104284,5.8116,172.0,171.99,62.9]
[1747612107693,5.32215563,172.09,171.99,62.9]
[1747612108603,5.8108,172.03,171.99,62.9]
[1747612109200,5.8108,172.03,171.99,68.7119]
[1747612109404,125.84,172.1,171.99,62.9]
[1747612109405,5.811,172.02,171.99,62.9]
[1747612109600,125.84,172.1,171.99,62.9]
[1747612110197,5.8116,172.0,171.99,62.9]
[1747612110402,125.84,172.1,171.99,62.9]
[1747612110605,5.8114,172.01,171.99,62.9]
[1747612111105,125.84,172.1,171.99,62.9]
[1747612111705,5.8109,172.03,171.99,62.9]
[1747612112698,5.32215563,172.12,171.99,62.9]
[1747612112891,3.8084,172.13,171.99,62.9]
[1747612112892,68.22215563,172.11,171.99,62.9]
[1747612113295,5.32215563,172.11,171.99,62.9]
[1747612114103,5.8086,172.09,171.99,62.9]
[1747612115103,5.8086,172.09,172.05,5.8096]
[1747612115295,5.8086,172.09,172.06,125.78]
[1747612115598,5.32215563,172.11,172.06,125.78]
[1747612115803,7.24734225,172.14,172.07,13.95229729]
[1747612116204,7.24734225,172.14,172.13,5.8072]
[1747612116504,7.24734225,172.14,172.13,68.6872]
[1747612116703,5.8063,172.16,172.13,68.6872]
[1747612117097,5.8058,172.17,172.13,68.6872]
[1747612117497,5.8058,172.17,172.14,5.8068]
[1747612117701,125.76,172.23,172.14,5.8068]
[1747612118406,125.76,172.23,172.13,68.6871]
[1747612118807,5.8061,172.17,172.13,68.6871]
[1747612119105,125.76,172.23,172.13,62.88]
[1747612119405,5.8059,172.17,172.13,62.88]
[1747612119808,125.76,172.23,172.13,62.88]
[1747612120011,5.8059,172.17,172.13,62.88]
[1747612120404,125.76,172.23,172.13,62.88]
[1747612120708,125.76,172.23,172.14,5.8068]
[1747612120905,125.76,172.23,172.13,62.88]
[1747612121107,5.8057,172.18,172.13,68.6872]
[1747612122005,62.88,172.23,172.13,62.88]
[1747612122599,2.0317,172.25,172.13,62.88]
[1747612122907,62.86,172.27,172.13,62.88]
[1747612123110,5.8049,172.2,172.13,62.88]
[1747612123509,5.8049,172.2,172.14,5.8068]
[1747612123713,5.8045,172.21,172.15,3.9042]
[1747612123922,62.86,172.27,172.16,62.84]
[1747612124109,62.86,172.27,172.17,62.86]
[1747612126017,62.86,172.27,172.15,3.9042]
[1747612126319,62.86,172.27,172.15,66.7642]
[1747612127016,62.86,172.27,172.15,64.7786]
[1747612127917,5.8061,172.17,172.15,64.7786]
[1747612128113,62.86,172.27,172.15,64.7786]
[1747612128319,62.82,172.25,172.15,64.7786]
[1747612128522,5.8049,172.2,172.15,64.7786]
[1747612129921,5.8053,172.19,172.15,64.7786]
[1747612130221,62.82,172.25,172.15,64.7786]
[1747612130518,5.8051,172.2,172.15,64.7786]
[1747612130720,62.82,172.25,172.15,64.7786]
[1747612131517,62.82,172.25,172.03,501.86]
[1747612131711,62.82,172.25,172.08,5.8085]
[1747612131919,62.82,172.25,172.09,62.84]
[1747612132115,11.6074,172.24,172.09,125.66]
[1747612132316,9.94679729,172.26,172.09,125.66]
[1747612132711,125.64,172.25,172.1,1.8682]
[1747612132920,5.8062,172.16,172.11,5.8078]
[1747612133215,5.8062,172.16,172.12,3.8101]
[1747612133421,5.8062,172.16,172.13,125.64]
[1747612133720,5.8066,172.15,172.13,125.64]
[1747612134022,62.8,172.23,172.13,125.64]
[1747612134221,3.9846,172.22,172.13,125.64]
[1747612135225,5.8068,172.14,172.13,125.64]
[1747612138727,5.8066,172.15,172.13,125.64]
[1747612139527,5.8062,172.16,172.13,125.64]
[1747612139726,62.84,172.21,172.13,125.64]
[1747612140620,5.8068,172.14,172.13,125.64]
[1747612140819,62.8,172.18,172.09,62.78]
[1747612141219,5.8082,172.1,172.09,62.78]
[1747612144729,5.8089,172.08,172.07,62.8]
[1747612145330,2.0407,172.13,172.05,62.8]
[1747612145627,64.8407,172.13,172.05,62.8]
[1747612146129,3.875,172.12,172.05,62.8]
[1747612146426,3.875,172.12,172.02,62.8]
[1747612146727,5.812,171.99,171.95,503.9078]
[1747612146921,9.94679729,172.1,171.95,2.0078]
[1747612147226,125.58,172.09,171.95,2.0078]
[1747612147816,5.8111,172.02,171.95,7.821]
[1747612148030,62.8,172.04,171.95,2.0078]
[1747612148229,3.875,172.12,171.95,2.0078]
[1747612148426,5.81,172.05,171.99,5.8116]
[1747612148730,62.8,172.05,171.98,62.8]
[1747612148924,5.8108,172.03,171.98,62.8]
[1747612149323,5.8103,172.04,171.98,68.6119]
[1747612149516,3.875,172.12,171.98,62.8]
[1747612149718,125.6,172.11,171.98,62.8]
[1747612149922,5.8095,172.07,171.98,125.6]
[1747612150422,62.8,172.14,171.99,9.94679729]
[1747612150631,9.20284225,172.16,171.99,9.94679729]
[1747612150932,62.8,172.15,172.0,3.892]
[1747612151230,5.8089,172.08,172.0,3.892]
[1747612151627,62.8,172.11,172.0,3.892]
[1747612151928,125.62,172.11,172.0,3.892]
[1747612152330,5.8094,172.07,172.03,5.8104]
[1747612152630,62.8,172.1,172.02,62.82]
[1747612153035,5.8105,172.04,172.02,62.82]
[1747612153235,62.8,172.1,172.02,62.82]
[1747612153735,9.94679729,172.15,172.04,5.8102]
[1747612153925,125.62,172.14,172.02,62.82]
[1747612154125,62.8,172.13,172.02,125.62]
[1747612154333,62.8,172.13,172.06,5.8093]
[1747612154728,62.82,172.14,172.06,5.8093]
[1747612154929,125.62,172.14,172.06,62.82]
[1747612155130,64.7555,172.16,172.06,125.62]
[1747612157235,1.9555,172.16,172.06,125.62]
[1747612157536,5.8072,172.13,172.07,5.8089]
[1747612158434,5.8076,172.12,172.07,5.8089]
[1747612159034,5.8079,172.11,172.07,5.8089]
[1747612159437,62.8,172.15,172.06,131.4295]
[1747612159738,62.8,172.15,172.06,125.62]
[1747612159941,62.8,172.15,172.06,62.82]
[1747612160330,125.58,172.15,172.06,62.82]
[1747612160533,125.58,172.15,172.07,5.809]
[1747612160936,5.8075,172.12,172.07,5.809]
[1747612161240,5.8075,172.12,172.08,5.8089]
[1747612161737,5.8079,172.11,172.08,5.8089]
[1747612162339,62.8,172.15,172.06,125.6]
[1747612162940,5.808,172.11,172.07,5.809]
[1747612163129,5.808,172.11,172.06,125.6]
[1747612163334,5.8076,172.12,172.08,5.8089]
[1747612163534,62.8,172.15,172.06,125.6]
[1747612163739,62.8,172.19,172.06,125.6]
[1747612164037,5.8072,172.13,172.09,5.8084]
[1747612164440,62.78,172.18,172.08,5.8086]
[1747612164738,62.78,172.18,172.06,125.6]
[1747612165239,62.78,172.18,172.06,62.82]
[1747612165533,5.8088,172.09,172.06,62.82]
[1747612165929,62.78,172.13,172.06,62.82]
[1747612166535,21.55719729,172.19,172.06,62.82]
[1747612166740,125.58,172.18,172.06,62.82]
[1747612167843,5.8088,172.09,172.06,62.82]
[1747612168139,62.78,172.12,172.06,62.82]
[1747612168339,5.8092,172.07,172.06,62.82]
[1747612168541,5.8092,172.07,172.03,1.9951]
[1747612168735,125.58,172.12,172.02,125.58]
[1747612168936,1.8688,172.11,172.02,125.58]
[1747612169131,5.8102,172.04,172.02,125.58]
[1747612169337,62.78,172.08,172.02,62.8]
[1747612169641,5.8106,172.03,172.02,62.8]
[1747612169829,5.8106,172.03,172.0,3.892]
[1747612170029,125.58,172.08,172.0,3.892]
[1747612171141,5.8101,172.05,172.0,9.7034]
[1747612171837,1.8688,172.11,172.0,3.892]
[1747612172043,62.78,172.1,172.0,3.892]
[1747612172439,5.8094,172.07,172.0,3.892]
[1747612172639,62.78,172.13,172.0,3.892]
[1747612172945,5.8082,172.1,172.06,5.8093]
[1747612173144,5.8082,172.1,172.06,68.5693]
[1747612173444,62.78,172.14,172.06,62.76]
[1747612173642,62.78,172.16,172.06,62.76]
[1747612174348,5.8076,172.12,172.08,5.8088]
[1747612174639,62.78,172.16,172.06,62.76]
[1747612176047,5.8089,172.08,172.06,62.76]
[1747612176346,62.78,172.16,172.06,62.76]
[1747612176745,62.78,172.16,172.06,68.5693]
[1747612177448,62.78,172.16,172.07,5.8089]
[1747612177648,62.78,172.16,172.06,62.76]
[1747612177946,5.8079,172.11,172.08,5.8089]
[1747612178445,1.9152,172.17,172.06,62.76]
[1747612178645,62.76,172.18,172.08,62.76]
[1747612178845,62.76,172.18,172.09,3.847]
[1747612179147,62.76,172.18,172.1,62.76]
[1747612179843,1.8471,172.17,172.1,62.76]
[1747612180045,5.8079,172.11,172.1,62.76]
[1747612180248,5.8079,172.11,172.09,3.847]
[1747612181248,5.8076,172.12,172.09,3.847]
[1747612181757,68.17332183,172.18,172.09,3.847]
[1747612181942,5.41332183,172.18,172.1,62.76]
[1747612182143,5.8071,172.14,172.1,68.5679]
[1747612182450,5.41332183,172.18,172.1,62.76]
[1747612182949,5.41332183,172.18,172.13,5.8069]
[1747612183148,62.76,172.19,172.13,5.8069]
[1747612183352,62.76,172.19,172.1,62.76]
[1747612183948,5.8068,172.15,172.1,62.76]
[1747612184150,62.76,172.19,172.1,62.76]
[1747612184649,5.8079,172.11,172.1,62.76]
[1747612184948,62.74,172.16,172.08,62.74]
[1747612185140,5.8092,172.07,172.06,62.76]
[1747612185544,62.74,172.12,172.02,62.76]
[1747612185749,5.8106,172.03,172.02,62.76]
[1747612188149,5.8106,172.03,172.0,5.32569476]
[1747612188150,5.8112,172.01,172.0,5.32569476]
[1747612188350,62.74,172.08,171.99,66.7231]
[1747612188549,62.74,172.08,171.99,3.9831]
[1747612188953,62.76,172.07,171.98,62.76]
[1747612189154,64.7516,172.07,171.98,62.76]
[1747612189353,5.8118,172.0,171.98,62.76]
[1747612189854,1.9916,172.07,171.98,62.76]
[1747612190056,64.7316,172.07,171.98,62.76]
[1747612190261,64.7316,172.07,171.99,62.74]
[1747612190650,5.8103,172.04,171.99,62.74]
[1747612190855,64.7316,172.07,171.99,62.74]
[1747612192756,5.41332183,172.11,171.99,62.74]
[1747612192951,62.74,172.1,171.99,62.74]
[1747612193457,130.93332183,172.11,171.99,62.74]
[1747612193855,130.93332183,172.11,172.0,62.74]
[1747612194260,5.8105,172.04,172.0,62.74]
[1747612194455,130.93332183,172.11,172.0,62.74]
[1747612194759,5.8099,172.06,172.01,5.811]
[1747612195156,62.74,172.07,172.0,62.74]
[1747612196859,5.8106,172.03,172.0,62.74]
[1747612197064,5.8106,172.03,172.0,68.5515]
[1747612198153,5.811,172.02,172.0,62.74]
[1747612198562,62.74,172.07,171.98,62.76]
[1747612199261,5.8119,171.99,171.95,7.7377]
[1747612199463,62.74,172.03,171.95,62.78]
[1747612199858,5.8124,171.98,171.95,62.78]
[1747612201768,5.8124,171.98,171.95,68.5932]
[1747612202063,62.74,172.03,171.95,62.78]
[1747612202264,1.9169,172.06,171.95,62.78]
[1747612202763,5.41332183,172.08,172.0,5.8114]
[1747612203168,5.8105,172.04,172.0,5.8114]
[1747612203367,5.41332183,172.08,172.02,5.8109]
[1747612203566,5.41332183,172.08,172.0,1.999]
[1747612204062,70.11702183,172.12,172.01,9.7061]
[1747612204256,70.11702183,172.12,172.02,62.74]
[1747612204465,70.11702183,172.12,172.03,5.8105]
[1747612204661,70.09702183,172.12,172.02,125.46]
[1747612204861,5.8088,172.09,172.02,125.46]
[1747612205461,5.8083,172.1,172.02,125.46]
[1747612206169,5.41332183,172.12,172.02,125.46]
[1747612206465,5.41332183,172.12,172.03,5.8103]
[1747612206662,62.72,172.16,172.03,5.8103]
[1747612206973,62.72,172.16,172.04,62.72]
[1747612208070,5.8087,172.09,172.04,62.72]
[1747612208270,5.8087,172.09,172.05,5.8096]
[1747612208470,5.8087,172.09,172.06,62.72]
[1747612209563,5.8087,172.09,172.06,68.5295]
[1747612209760,62.72,172.15,172.06,62.72]
[1747612209967,1.161845,172.14,172.06,62.72]
[1747612210476,63.861845,172.14,172.06,62.72]
[1747612210871,5.8092,172.07,172.06,62.72]
[1747612213872,5.8101,172.05,172.02,125.42]
[1747612214068,62.72,172.12,172.02,125.42]
[1747612214271,5.8096,172.06,172.02,125.42]
[1747612215080,5.8091,172.08,172.02,125.42]
[1747612215778,5.8091,172.08,172.04,5.81]
[1747612215980,1.161845,172.14,172.02,125.42]
[1747612216274,1.161845,172.14,172.02,135.36679729]
[1747612216680,62.68,172.14,172.02,125.42]
[1747612216979,5.8105,172.04,172.02,62.72]
[1747612217181,11.6134,172.15,172.02,62.72]
[1747612217477,1.8984,172.17,172.02,127.64]
[1747612217674,1.8984,172.17,172.05,5.8096]
[1747612217881,1.8984,172.17,172.06,62.72]
[1747612218268,1.8984,172.17,172.06,68.5295]
[1747612219581,5.8079,172.11,172.06,68.5295]
[1747612219982,1.8984,172.17,172.06,68.5295]
[1747612220483,1.8984,172.17,172.07,64.94]
[1747612220688,1.8984,172.17,172.07,66.9569]
[1747612221177,5.8071,172.14,172.09,5.8083]
[1747612221380,1.8984,172.17,172.1,62.7]
[1747612222077,5.8073,172.13,172.1,62.7]
[1747612222880,5.8068,172.14,172.1,68.5082]
[1747612223386,5.8062,172.16,172.12,5.8073]
[1747612223581,5.41332183,172.21,172.13,64.82]
[1747612223777,5.41332183,172.21,172.14,62.7]
[1747612223979,5.41332183,172.21,172.14,70.4116]
[1747612224284,5.41332183,172.21,172.14,64.6048]
[1747612225088,2.33872183,172.21,172.18,5.8052]
[1747612225281,5.8041,172.23,172.19,129.5984]
[1747612225486,2.33872183,172.28,172.2,62.7]
[1747612226092,5.8045,172.21,172.2,62.7]
[1747612226281,2.33872183,172.28,172.2,62.7]
[1747612227680,5.8033,172.25,172.2,68.5045]
[1747612228588,5.8036,172.24,172.2,68.5045]
[1747612228791,2.0493,172.31,172.2,62.7]
[1747612229788,5.8044,172.22,172.2,62.7]
[1747612230186,2.0493,172.31,172.2,62.7]
[1747612230394,5.8041,172.23,172.2,62.7]
[1747612230690,2.0493,172.31,172.2,62.7]
[1747612230892,5.8045,172.21,172.2,62.7]
[1747612231793,5.8042,172.22,172.2,62.7]
[1747612232395,2.0493,172.31,172.2,62.7]
[1747612232589,131.58,172.3,172.2,62.7]
[1747612234693,5.8039,172.23,172.2,62.7]
[1747612235188,131.58,172.3,172.2,62.7]
[1747612236282,2.0493,172.31,172.2,62.7]
[1747612236487,131.44,172.3,172.2,62.7]
[1747612237102,2.0493,172.31,172.2,62.7]
[1747612237295,1.9401,172.33,172.2,62.7]
[1747612237495,1.9401,172.33,172.21,2.0368]
[1747612237696,569.379,172.35,172.23,5.8037]
[1747612237896,635.579,172.35,172.24,1.9097]
[1747612238195,635.579,172.35,172.25,65.42]
[1747612238396,5.802,172.29,172.25,65.42]
[1747612238597,635.519,172.35,172.25,65.42]
[1747612238905,65.42,172.35,172.25,65.42]
[1747612239299,5.8017,172.3,172.25,71.2231]
[1747612239502,11.91121114,172.4,172.25,75.36679729]
[1747612239503,10.03031114,172.4,172.25,75.36679729]
[1747612239893,10.03031114,172.4,172.29,9.94679729]
[1747612240097,10.03031114,172.4,172.3,133.4643]
[1747612240392,5.7974,172.42,172.33,9.94679729]
[1747612240608,14.17324988,172.49,172.41,9.94679729]
[1747612240802,14.17324988,172.49,172.42,131.6]
[1747612241315,10.70489889,172.58,172.47,19.83467962]
[1747612241509,10.70489889,172.58,172.48,131.96]
[1747612241710,10.70489889,172.58,172.49,65.42]
[1747612242504,2.98276558,172.65,172.49,65.42]
[1747612243809,2.98276558,172.65,172.53,9.8782672]
[1747612244000,2.98276558,172.65,172.54,138.72]
[1747612244500,5.9027,172.69,172.54,138.72]
[1747612244905,70.88,172.68,172.54,138.72]
[1747612245098,70.88,172.68,172.49,71.28]
[1747612245304,5.9027,172.69,172.5,71.3]
[1747612245515,79.5427,172.69,172.51,73.7]
[1747612245811,5.9027,172.69,172.52,15.58135169]
[1747612246000,5.9027,172.69,172.53,83.52184061]
[1747612246209,5.9027,172.69,172.53,79.4336]
[1747612246507,5.9027,172.69,172.53,73.64]
[1747612246712,5.7907,172.62,172.53,73.64]
[1747612247011,5.9027,172.69,172.53,73.64]
[1747612247206,90.43058497,172.69,172.52,5.69956011]
[1747612247414,90.43058497,172.69,172.57,5.32569476]
[1747612247905,73.6,172.68,172.57,80.02569476]
[1747612248103,79.5027,172.69,172.57,80.02569476]
[1747612248299,5.9027,172.69,172.57,80.02569476]
[1747612248504,5.9027,172.69,172.58,5.69956011]
[1747612248809,5.7901,172.64,172.58,5.69956011]
[1747612249012,5.9027,172.69,172.58,5.69956011]
[1747612249608,2.59785553,172.71,172.61,9.88788497]
[1747612249807,2.59785553,172.71,172.62,75.32]
[1747612250015,2.59785553,172.71,172.65,9.88788497]
[1747612250305,2.59785553,172.71,172.62,11.02525487]
[1747612250510,2.59785553,172.71,172.62,86.40525487]
[1747612250698,5.7891,172.67,172.62,86.40525487]
[1747612250903,2.59785553,172.71,172.62,86.40525487]
[1747612251106,73.58,172.7,172.62,86.40525487]
[1747612251307,2.59785553,172.71,172.62,11.02525487]
[1747612251505,2.59785553,172.71,172.62,5.32569476]
[1747612251710,2.59785553,172.71,172.63,75.74]
[1747612252506,76.15785553,172.71,172.63,75.74]
[1747612253407,2.59785553,172.71,172.63,75.74]
[1747612254314,89.4457405,172.71,172.58,77.46]
[1747612254513,1.999,172.7,172.58,77.46]
[1747612254713,9.88788497,172.67,172.54,77.44]
[1747612255013,9.88788497,172.63,172.5,77.5]
[1747612255905,9.88788497,172.63,172.4,76.94]
[1747612256212,9.88788497,172.59,172.41,77.66]
[1747612256511,82.8032,172.58,172.41,77.66]
[1747612256709,5.8632,172.58,172.44,9.88788497]
[1747612256907,5.7924,172.57,172.45,76.94]
[1747612257211,76.94,172.64,172.59,5.04794513]
[1747612257606,3.8267,172.66,172.59,5.04794513]
[1747612258111,17.3522,172.82,172.6,76.94]
[1747612258308,76.94,172.76,172.6,86.82788497]
[1747612258910,76.94,172.76,172.6,76.94]
[1747612259113,5.7887,172.68,172.6,76.94]
[1747612259615,76.94,172.76,172.63,5.7902]
[1747612259616,5.7883,172.7,172.63,5.7902]
[1747612259813,76.94,172.76,172.63,84.7102]
[1747612260109,500.62,172.82,172.63,78.92]
[1747612260312,9.88788497,172.89,172.63,78.92]
[1747612260313,3.9336,172.83,172.64,9.88788497]
[1747612260507,3.9336,172.83,172.65,76.94]
[1747612260812,78.88,172.82,172.65,76.94]
[1747612261014,3.9336,172.83,172.64,78.92]
[1747612261015,88.80788497,172.77,172.64,78.92]
[1747612261312,5.7887,172.68,172.64,78.92]
[1747612261509,76.92,172.73,172.64,78.92]
[1747612262214,1.9355,172.77,172.64,78.92]
[1747612262517,5.7876,172.72,172.66,5.7891]
[1747612262815,1.9355,172.77,172.64,78.92]
[1747612263010,5.7875,172.72,172.66,5.789]
[1747612263213,76.92,172.74,172.64,78.92]
[1747612263615,5.7887,172.69,172.64,78.92]
[1747612263805,1.9355,172.77,172.64,78.92]
[1747612264209,5.7864,172.75,172.7,5.788]
[1747612264507,1.9355,172.77,172.69,79.36]
[1747612264713,5.7864,172.75,172.69,85.148]
[1747612265008,1.9355,172.77,172.69,79.36]
[1747612265213,8.14321513,172.78,172.7,5.788]
[1747612265815,2.35761513,172.78,172.69,79.36]
[1747612266005,2.35761513,172.78,172.71,16.05532925]
[1747612266415,2.35761513,172.78,172.77,5.7857]
[1747612266611,2.35761513,172.78,172.77,161.8857]
[1747612267110,6.17739261,172.84,172.77,156.1]
[1747612267713,6.17739261,172.84,172.81,5.784]
[1747612267912,6.17739261,172.84,172.82,161.84]
[1747612268117,6.17739261,172.84,172.83,161.84]
[1747612268419,2.72425365,172.9,172.83,161.84]
[1747612268617,2.72425365,172.9,172.8,500.26]
[1747612268618,5.7822,172.88,172.8,500.26]
[1747612268815,1.15687181,172.88,172.81,162.04]
[1747612269713,1.15687181,172.88,172.81,178.09532925]
[1747612270017,1.15687181,172.88,172.87,5.7823]
[1747612270214,1.15687181,172.88,172.87,163.88]
[1747612270717,1.15687181,172.88,172.87,169.6623]
[1747612270917,1.15687181,172.88,172.87,163.88]
[1747612271416,2.72425365,172.9,172.87,163.88]
[1747612271711,2.72425365,172.9,172.8,500.26]
[1747612272021,2.72425365,172.9,172.81,166.86]
[1747612273612,2.72425365,172.9,172.81,172.6443]
[1747612273818,2.72425365,172.9,172.77,83.44]
[1747612274212,5.7839,172.83,172.77,89.2256]
[1747612274510,2.72425365,172.9,172.77,83.44]